bitfinex/quotes_BTCUSD_20260311
["timestamp","ask_amount","ask_price","bid_price","bid_amount"]
[1773208276963,0.09129689,69620.0,69603.0,0.08677331]
[1773208277125,0.001,69613.0,69603.0,0.08677331]
[1773208277671,0.00144,69613.0,69603.0,0.08677331]
[1773208278430,0.00144,69613.0,69604.0,0.07183495]
[1773208278648,0.00244,69613.0,69604.0,0.15860826]
[1773208278854,0.00244,69613.0,69605.0,0.08677331]
[1773208279062,0.001,69613.0,69605.0,0.08677331]
[1773208279276,0.00244,69613.0,69605.0,0.08677331]
[1773208279623,0.001,69613.0,69605.0,0.08677331]
[1773208279833,0.00144,69615.0,69605.0,0.08677331]
[1773208280040,0.00016958,69614.0,69605.0,0.08677331]
[1773208280793,0.00022001,69613.0,69606.0,0.16038002]
[1773208280958,0.00410787,69613.0,69606.0,0.16038002]
[1773208281096,0.00144,69617.0,69607.0,0.08854714]
[1773208281302,0.00144,69617.0,69607.0,0.13808182]
[1773208281953,0.09129689,69620.0,69607.0,0.13808182]
[1773208282151,0.00144,69617.0,69610.0,0.04953468]
[1773208282454,0.00144,69617.0,69607.0,0.13808182]
[1773208282748,0.001,69617.0,69609.0,0.08854714]
[1773208282950,0.00728001,69620.0,69609.0,0.08854714]
[1773208283368,0.00584001,69620.0,69610.0,0.04953468]
[1773208283571,0.00728001,69620.0,69611.0,0.08854714]
[1773208283777,0.00023,69625.0,69611.0,0.08854714]
[1773208283913,0.00023,69625.0,69616.0,0.08854714]
[1773208283914,1e-08,69625.0,69616.0,0.08854714]
[1773208284111,0.00022001,69635.0,69616.0,0.08854714]
[1773208284323,0.00022001,69635.0,69620.0,0.04953468]
[1773208284324,0.00144,69634.0,69620.0,0.04953468]
[1773208284562,0.00022001,69635.0,69620.0,0.04953468]
[1773208284770,0.00022001,69635.0,69621.0,0.07181741]
[1773208284969,0.00166001,69635.0,69622.0,0.08854714]
[1773208285403,0.00181571,69635.0,69622.0,0.08854714]
[1773208285596,0.00144,69634.0,69622.0,0.08854714]
[1773208285797,0.00037571,69635.0,69622.0,0.08854714]
[1773208286007,0.00144,69634.0,69622.0,0.08854714]
[1773208286157,0.00037571,69635.0,69622.0,0.08854714]
[1773208286365,0.00144,69634.0,69622.0,0.08854714]
[1773208286790,0.00144,69634.0,69623.0,0.07181534]
[1773208286988,1e-08,69635.0,69623.0,0.07181534]
[1773208287210,1e-08,69635.0,69625.0,0.08854714]
[1773208287434,1e-08,69635.0,69613.0,0.00144]
[1773208287435,0.08844788,69633.0,69613.0,0.00144]
[1773208287751,0.071804,69634.0,69600.0,0.00023]
[1773208287752,0.08844788,69628.0,69605.0,0.07183391]
[1773208287904,0.08844788,69626.0,69605.0,0.07194587]
[1773208288693,0.00144,69625.0,69610.0,0.04953468]
[1773208288892,0.16026322,69623.0,69611.0,0.07182772]
[1773208289530,0.07181377,69625.0,69612.0,0.08854714]
[1773208289682,0.00144,69622.0,69612.0,0.08854714]
[1773208290080,0.07281377,69625.0,69612.0,0.08854714]
[1773208290303,0.00144,69624.0,69612.0,0.08854714]
[1773208290712,0.00144,69623.0,69612.0,0.08854714]
[1773208290933,0.00144,69623.0,69613.0,0.07182566]
[1773208291332,0.08844788,69622.0,69611.0,0.07182772]
[1773208291635,0.08844788,69622.0,69612.0,0.07182566]
[1773208291930,0.001,69625.0,69613.0,0.07182566]
[1773208291931,0.00144,69621.0,69613.0,0.07182566]
[1773208292523,0.00144,69620.0,69613.0,0.07182566]
[1773208292818,0.001,69624.0,69614.0,0.08854714]
[1773208293032,0.00144,69630.0,69616.0,0.08854714]
[1773208293931,0.00022001,69635.0,69620.0,0.14857929]
[1773208294187,0.00022001,69635.0,69621.0,0.08854714]
[1773208294483,0.08844788,69633.0,69615.0,0.0718236]
[1773208294685,0.08844788,69633.0,69605.0,0.00011196]
[1773208294686,0.08844788,69633.0,69609.0,0.00144]
[1773208295478,0.07180606,69632.0,69610.0,0.07182876]
[1773208295679,0.08844788,69631.0,69610.0,0.1603759]
[1773208296529,0.0857513,69629.0,69610.0,0.1603759]
[1773208297074,0.00022001,69624.0,69610.0,0.1603759]
[1773208297314,0.00144,69623.0,69610.0,0.07182876]
[1773208297526,0.07181741,69621.0,69605.0,0.07194587]
[1773208297699,0.07181741,69621.0,69606.0,0.08763756]
[1773208298311,0.00144,69620.0,69606.0,0.08763756]
[1773208298573,0.00144,69620.0,69602.0,0.07183391]
[1773208298574,0.0857513,69619.0,69600.0,0.00023]
[1773208298783,0.0857513,69619.0,69600.0,0.07206885]
[1773208298784,0.08586319,69619.0,69600.0,0.07206885]
[1773208298993,0.08586319,69619.0,69600.0,0.07206877]
[1773208299558,0.0718205,69618.0,69600.0,0.07206877]
[1773208299865,0.0857513,69617.0,69600.0,0.00023]
[1773208300087,0.0857513,69617.0,69595.0,0.07213111]
[1773208300088,0.0857513,69617.0,69595.0,0.00028789]
[1773208301113,0.0867513,69617.0,69596.0,1e-08]
[1773208301308,0.0718205,69618.0,69592.0,0.00562]
[1773208301309,0.0857513,69616.0,69592.0,0.00562]
[1773208301709,0.0857513,69614.0,69592.0,0.00562]
[1773208301895,0.0857513,69612.0,69592.0,0.00562]
[1773208302478,0.0857513,69612.0,69592.0,0.07746718]
[1773208303321,0.0867513,69612.0,69592.0,0.07746718]
[1773208303819,0.0857513,69609.0,69592.0,0.07746718]
[1773208304024,0.00144,69608.0,69592.0,0.07746718]
[1773208304233,0.0857513,69607.0,69592.0,0.07746718]
[1773208304528,0.00144,69606.0,69592.0,0.07746718]
[1773208304876,0.00144,69606.0,69592.0,0.16510474]
[1773208305075,0.00144,69605.0,69593.0,0.08763756]
[1773208305701,0.07183495,69604.0,69594.0,0.07184527]
[1773208306707,0.00144,69603.0,69594.0,0.07184527]
[1773208306906,0.00144,69603.0,69593.0,0.15948312]
[1773208307112,0.0857513,69602.0,69586.0,0.07185331]
[1773208307360,0.0857513,69602.0,69588.0,0.07185139]
[1773208307523,0.0857513,69602.0,69589.0,0.07205033]
[1773208307895,0.07183804,69601.0,69589.0,0.0002]
[1773208308140,0.0857513,69600.0,69589.0,0.0002]
[1773208308537,0.07183804,69601.0,69585.0,0.0002]
[1773208308740,0.0857513,69599.0,69585.0,0.0002]
[1773208309146,0.07183804,69603.0,69585.0,0.0002]
[1773208309147,0.00144,69598.0,69586.0,0.08763756]
[1773208309333,0.00144,69597.0,69586.0,0.08763756]
[1773208309516,0.00144,69596.0,69586.0,0.08763756]
[1773208309716,0.00144,69595.0,69586.0,0.08763756]
[1773208309971,0.00144,69594.0,69587.0,0.0718525]
[1773208310115,0.07184032,69599.0,69587.0,0.0718525]
[1773208310318,0.00144,69598.0,69587.0,0.0718525]
[1773208310540,0.00155183,69598.0,69587.0,0.0718525]
[1773208311035,0.00011183,69598.0,69587.0,0.0718525]
[1773208311366,0.00144,69597.0,69587.0,0.0718525]
[1773208311970,0.07184364,69596.0,69587.0,0.0718525]
[1773208312305,0.08858616,69595.0,69587.0,0.0718525]
[1773208312523,0.07184364,69596.0,69587.0,0.0718525]
[1773208312524,0.00144,69597.0,69587.0,0.0718525]
[1773208312792,0.00144,69597.0,69587.0,0.0720525]
[1773208313167,0.00011183,69598.0,69588.0,0.08107096]
[1773208313372,0.00144,69596.0,69588.0,0.08107096]
[1773208313971,0.00011183,69598.0,69588.0,0.08107096]
[1773208314171,0.00144,69596.0,69590.0,0.08107096]
[1773208314772,0.00144,69595.0,69590.0,0.08107096]
[1773208315160,0.00011183,69598.0,69590.0,0.08107096]
[1773208315408,0.00144,69596.0,69590.0,0.08107096]
[1773208316358,0.00011183,69598.0,69591.0,0.07184837]
[1773208316602,0.00144,69597.0,69591.0,0.07184837]
[1773208316895,0.00011183,69598.0,69591.0,0.07184837]
[1773208317100,0.00144,69597.0,69591.0,0.07184837]
[1773208317852,0.00011183,69598.0,69591.0,0.07184837]
[1773208318054,0.00144,69597.0,69591.0,0.07184837]
[1773208319096,0.00011183,69598.0,69591.0,0.07184837]
[1773208319311,0.00144,69599.0,69592.0,0.08107096]
[1773208319512,0.00144,69601.0,69592.0,0.08107096]
[1773208319891,0.00144,69602.0,69592.0,0.08107096]
[1773208320313,0.00144,69602.0,69588.0,0.07184837]
[1773208320314,0.00144,69602.0,69586.0,0.0004]
[1773208320315,0.08858616,69599.0,69586.0,0.0004]
[1773208320487,0.08858616,69599.0,69587.0,0.00031183]
[1773208321095,0.08858616,69599.0,69592.0,0.001]
[1773208321303,0.08858616,69599.0,69587.0,0.00031183]
[1773208322129,0.08958616,69599.0,69585.0,1e-08]
[1773208322290,0.08858616,69597.0,69585.0,1e-08]
[1773208323355,0.09002616,69596.0,69585.0,1e-08]
[1773208323735,0.00144,69595.0,69585.0,1e-08]
[1773208323917,0.08858616,69596.0,69585.0,1e-08]
[1773208324119,0.00144,69595.0,69585.0,1e-08]
[1773208324326,0.07184527,69594.0,69585.0,1e-08]
[1773208324535,0.08958616,69596.0,69585.0,1e-08]
[1773208324742,0.00144,69598.0,69585.0,0.08107097]
[1773208324940,0.00144,69597.0,69589.0,0.08107096]
[1773208325434,4.823e-05,69599.0,69589.0,0.08107096]
[1773208325435,0.00144,69596.0,69589.0,0.08107096]
[1773208325839,0.001,69596.0,69589.0,0.08107096]
[1773208326041,0.00144,69598.0,69589.0,0.08107096]
[1773208326544,0.00144,69598.0,69590.0,0.0718494]
[1773208327979,4.823e-05,69599.0,69590.0,0.15292036]
[1773208328372,4.823e-05,69599.0,69591.0,0.08107096]
[1773208328571,4.823e-05,69599.0,69593.0,0.08107096]
[1773208328991,0.00148823,69599.0,69593.0,0.08107096]
[1773208329351,0.00148823,69599.0,69592.0,0.07184733]
[1773208329551,0.00148823,69599.0,69593.0,0.08107096]
[1773208329751,0.00133429,69599.0,69593.0,0.08107096]
[1773208330566,0.00030794,69598.0,69594.0,0.07184527]
[1773208330776,0.00030794,69598.0,69594.0,0.15291623]
[1773208332513,0.00030794,69598.0,69595.0,0.08107096]
[1773208332859,0.00030794,69598.0,69597.0,0.08107096]
[1773208333065,0.00144,69605.0,69597.0,0.08107096]
[1773208333283,0.00144,69606.0,69597.0,0.08107096]
[1773208334351,0.07182473,69614.0,69597.0,0.08107096]
[1773208334352,0.07204441,69615.0,69597.0,0.08107096]
[1773208334548,0.00144,69614.0,69597.0,0.08107096]
[1773208335097,0.00022001,69615.0,69599.0,0.08107096]
[1773208335272,0.00144,69613.0,69599.0,0.08107096]
[1773208337355,0.00144,69613.0,69601.0,0.08107096]
[1773208337891,0.07182221,69617.0,69603.0,0.08107096]
[1773208337892,0.00144,69614.0,69603.0,0.08107096]
[1773208338074,0.00144,69618.0,69603.0,0.08107096]
[1773208338301,0.00144,69618.0,69603.0,0.08115673]
[1773208338507,0.00562,69620.0,69603.0,0.08115673]
[1773208338673,0.07743878,69620.0,69603.0,0.08115673]
[1773208338873,0.00144,69619.0,69603.0,0.08115673]
[1773208339323,0.00022001,69618.0,69604.0,0.07183495]
[1773208339529,0.00166001,69618.0,69605.0,0.08107096]
[1773208339876,0.00144,69617.0,69605.0,0.08107096]
[1773208340113,0.00706,69620.0,69605.0,0.08107096]
[1773208340315,0.00562,69620.0,69605.0,0.08107096]
[1773208341392,0.00562,69620.0,69607.0,0.08095324]
[1773208341588,0.00562,69620.0,69606.0,0.07183288]
[1773208341589,0.00562,69620.0,69609.0,0.08095324]
[1773208341795,0.00531175,69620.0,69609.0,0.08095324]
[1773208342381,0.00531175,69620.0,69606.0,0.07183288]
[1773208342382,0.04236188,69619.0,69606.0,0.07183288]
[1773208342694,0.04236188,69619.0,69604.0,0.07183495]
[1773208343506,0.04222852,69617.0,69603.0,8.577e-05]
[1773208344336,0.00531175,69620.0,69603.0,8.577e-05]
[1773208344541,0.07857021,69620.0,69604.0,0.08095324]
[1773208344719,0.00531175,69620.0,69604.0,0.08239324]
[1773208344915,0.00144,69619.0,69604.0,0.08239324]
[1773208345235,0.00144,69619.0,69603.0,8.577e-05]
[1773208345236,0.04195889,69618.0,69603.0,8.577e-05]
[1773208345590,0.07166744,69617.0,69603.0,8.577e-05]
[1773208346427,0.07166744,69617.0,69603.0,0.08103901]
[1773208346744,0.00144,69616.0,69603.0,0.08103901]
[1773208347715,0.0718236,69615.0,69604.0,0.07183495]
[1773208348214,0.00144,69614.0,69604.0,0.07183495]
[1773208350341,0.04129139,69613.0,69603.0,8.577e-05]
[1773208350547,0.04129139,69613.0,69591.0,0.07184837]
[1773208350775,0.04129139,69613.0,69591.0,0.0718966]
[1773208351151,0.04129139,69613.0,69591.0,0.15284984]
[1773208351952,0.04102677,69611.0,69592.0,0.08095324]
[1773208353187,0.00144,69610.0,69592.0,0.08095324]
[1773208353393,0.04233466,69610.0,69592.0,0.08095324]
[1773208354497,0.07182979,69609.0,69593.0,0.0718463]
[1773208354695,0.11310205,69628.0,69594.0,0.08095324]
[1773208354696,0.07182154,69617.0,69594.0,0.08095324]
[1773208354898,0.04063138,69616.0,69592.0,0.0718463]
[1773208355098,0.04063138,69616.0,69592.0,0.0002]
[1773208356209,0.04163138,69616.0,69592.0,0.0002]
[1773208356650,0.04036937,69614.0,69592.0,0.0002]
[1773208357931,0.04136937,69614.0,69592.0,0.0002]
[1773208358346,0.04336937,69614.0,69592.0,0.0002]
[1773208360262,0.07182566,69613.0,69592.0,0.0002]
[1773208360442,0.03998054,69612.0,69592.0,0.0002]
[1773208360644,0.03985091,69610.0,69592.0,0.0002]
[1773208361265,0.03985091,69610.0,69593.0,0.08407621]
[1773208361843,0.001,69610.0,69593.0,0.08407621]
[1773208362057,0.07182566,69613.0,69593.0,0.08407621]
[1773208362264,0.07183082,69608.0,69595.0,0.08407621]
[1773208363105,0.001,69610.0,69595.0,0.08407621]
[1773208363342,0.07326979,69609.0,69595.0,0.08407621]
[1773208364347,0.07326979,69609.0,69596.0,0.0718432]
[1773208364348,0.11273365,69609.0,69596.0,0.0718432]
[1773208365722,0.07326979,69609.0,69596.0,0.15591941]
[1773208366557,0.07326979,69609.0,69593.0,0.08407621]
[1773208366710,0.07426979,69609.0,69593.0,0.08407621]
[1773208366913,0.07326979,69609.0,69593.0,0.08407621]
[1773208368061,0.00144,69608.0,69593.0,0.08407621]
[1773208368503,0.07182324,69616.0,69594.0,0.07184527]
[1773208368712,0.07204154,69618.0,69601.0,0.08407621]
[1773208368713,0.07204095,69618.0,69601.0,0.08407621]
[1773208369075,0.00144,69617.0,69601.0,0.08407621]
[1773208369780,0.00022001,69610.0,69601.0,0.08407621]
[1773208369978,0.00144,69609.0,69601.0,0.08407621]
[1773208370872,0.00144,69609.0,69602.0,0.15334436]
[1773208372600,0.00144,69609.0,69603.0,0.08150735]
[1773208372820,0.00166001,69610.0,69604.0,0.07183495]
[1773208375537,0.00150593,69610.0,69604.0,0.07183495]
[1773208375965,0.07333537,69610.0,69602.0,0.07183652]
[1773208376166,0.00150593,69610.0,69602.0,0.15334387]
[1773208377525,0.00150593,69610.0,69603.0,0.08150735]
[1773208379649,0.00150593,69610.0,69604.0,0.07183495]
[1773208379853,0.00150593,69610.0,69605.0,0.08150735]
[1773208380069,0.00022001,69617.0,69605.0,0.08150735]
[1773208380267,0.00144,69616.0,69605.0,0.08150735]
[1773208382407,0.00144,69615.0,69606.0,0.15334023]
[1773208382815,0.07204159,69617.0,69606.0,0.07183288]
[1773208383024,0.00144,69614.0,69607.0,0.08150735]
[1773208383585,0.00022001,69610.0,69607.0,0.08150735]
[1773208384349,0.00022001,69610.0,69608.0,0.07183082]
[1773208386338,0.00022001,69610.0,69603.0,0.08150735]
[1773208387078,0.00144,69612.0,69603.0,0.08150735]
[1773208387776,0.0720416,69617.0,69603.0,0.08150735]
[1773208388015,0.00022001,69617.0,69607.0,0.04953647]
[1773208388135,0.00022001,69617.0,69608.0,0.08150735]
[1773208388330,0.00022001,69617.0,69610.0,0.08150735]
[1773208389358,0.00144,69623.0,69610.0,0.08150735]
[1773208389568,0.0722182,69621.0,69611.0,0.08150735]
[1773208390520,0.0722182,69621.0,69612.0,0.07182669]
[1773208390786,0.0722182,69621.0,69612.0,0.15333404]
[1773208390970,0.0004,69621.0,69612.0,0.15333404]
[1773208391505,0.00022001,69619.0,69612.0,0.15333404]
[1773208391706,0.00022001,69619.0,69612.0,0.07182669]
[1773208391931,0.00022001,69619.0,69613.0,0.08150735]
[1773208393165,0.00022001,69624.0,69615.0,0.08150735]
[1773208393370,0.00144,69623.0,69615.0,0.08150735]
[1773208395219,0.07181027,69628.0,69615.0,0.08150735]
[1773208395220,0.0718034,69635.0,69617.0,0.08150735]
[1773208395546,0.00144,69637.0,69626.0,0.08150735]
[1773208395677,0.00144,69637.0,69626.0,0.08188036]
[1773208396086,0.08464959,69641.0,69626.0,0.08188036]
[1773208396287,0.08464959,69641.0,69631.0,0.08150735]
[1773208396288,0.00144,69640.0,69631.0,0.08150735]
[1773208396912,0.00144,69639.0,69631.0,0.08150735]
[1773208397112,0.07179987,69638.0,69627.0,0.07181095]
[1773208397314,0.04976647,69650.0,69631.0,0.08150735]
[1773208397316,0.04953647,69650.0,69631.0,0.08150735]
[1773208397488,0.00144,69650.0,69632.0,0.00144]
[1773208397719,0.00144,69650.0,69633.0,0.08150735]
[1773208398746,0.23413144,69657.0,69633.0,0.08150735]
[1773208398945,0.00144,69656.0,69640.0,0.04953647]
[1773208399129,0.00144,69656.0,69641.0,0.08150735]
[1773208399669,0.07178235,69655.0,69642.0,0.07179575]
[1773208399981,0.07178235,69655.0,69643.0,0.07933082]
[1773208400182,0.08806479,69655.0,69642.0,0.07179575]
[1773208400338,0.07178235,69655.0,69643.0,0.07933082]
[1773208402272,0.07178235,69655.0,69645.0,0.07933082]
[1773208402653,0.07278235,69655.0,69645.0,0.07933082]
[1773208403283,0.07278235,69655.0,69641.0,0.15160752]
[1773208403468,0.07278235,69655.0,69642.0,0.07933082]
[1773208404417,0.07178235,69655.0,69642.0,0.15112624]
[1773208404694,0.00144,69654.0,69643.0,0.07933082]
[1773208405871,0.00144,69654.0,69641.0,0.07227654]
[1773208406276,0.07178441,69653.0,69641.0,1e-08]
[1773208406483,0.01548325,69652.0,69641.0,1e-08]
[1773208406733,0.00039999,69638.0,69637.0,0.07180078]
[1773208407102,0.01548325,69652.0,69637.0,0.1511316]
[1773208408054,0.04953647,69650.0,69632.0,0.00144]
[1773208408256,0.07178441,69653.0,69625.0,0.00167]
[1773208408257,0.04953647,69642.0,69625.0,0.00167]
[1773208408403,0.07615541,69639.0,69625.0,0.07204322]
[1773208408608,0.07615541,69639.0,69626.0,0.07218515]
[1773208409606,0.07715541,69639.0,69626.0,0.15151597]
[1773208410055,0.07715541,69639.0,69611.0,0.2442276]
[1773208410270,0.07715541,69639.0,68288.0,0.3]
[1773208410271,0.1511655,69623.0,69600.0,0.04996647]
[1773208410474,0.07615541,69620.0,69603.0,0.0720358]
[1773208411024,0.07615541,69620.0,69603.0,0.15136662]
[1773208411357,0.00144,69619.0,69603.0,0.15136662]
[1773208412060,0.001,69620.0,69609.0,0.04953647]
[1773208412379,0.07181598,69623.0,69611.0,0.07182772]
[1773208412561,0.00144,69622.0,69612.0,0.07933082]
[1773208412861,0.07181397,69625.0,69612.0,0.07933082]
[1773208413064,0.00144,69624.0,69612.0,0.07933082]
[1773208413564,0.00144,69623.0,69612.0,0.07933082]
[1773208413770,0.07181397,69625.0,69619.0,0.0002]
[1773208413968,0.07615541,69630.0,69619.0,0.0002]
[1773208413969,0.14796374,69630.0,69619.0,0.0002]
[1773208414170,0.00144,69624.0,69619.0,0.0002]
[1773208414877,0.07325454,69624.0,69619.0,0.0002]
[1773208416089,0.07325454,69624.0,69606.0,0.07183239]
[1773208416266,0.07615541,69623.0,69607.0,0.07203107]
[1773208416847,0.07615541,69621.0,69607.0,0.07203107]
[1773208417053,0.07615541,69621.0,69607.0,0.0002]
[1773208419405,0.15422104,69620.0,69607.0,0.0002]
[1773208421713,0.00144,69619.0,69607.0,0.0002]
[1773208422111,0.0824026,69618.0,69607.0,0.0002]
[1773208423279,0.0824026,69618.0,69607.0,0.00031188]
[1773208423439,0.00144,69619.0,69607.0,0.00031188]
[1773208423644,0.0718205,69618.0,69608.0,0.07183082]
[1773208423836,0.0718205,69618.0,69608.0,0.15389902]
[1773208424235,0.00144,69617.0,69609.0,0.0820682]
[1773208424670,0.0718205,69618.0,69609.0,0.0820682]
[1773208425046,0.07181187,69627.0,69609.0,0.0820682]
[1773208425247,0.07181439,69624.0,69609.0,0.0835082]
[1773208425447,0.00166001,69623.0,69609.0,0.0835082]
[1773208425767,0.00022001,69623.0,69611.0,0.0820682]
[1773208426353,0.07203559,69623.0,69611.0,0.0820682]
[1773208426746,0.0824026,69629.0,69611.0,0.0820682]
[1773208426747,0.07180915,69629.0,69611.0,0.0820682]
[1773208427567,0.07180915,69629.0,69612.0,0.00144]
[1773208427749,0.07180915,69629.0,69613.0,0.0820682]
[1773208427946,0.07180915,69629.0,69614.0,0.07182463]
[1773208428143,0.07180915,69629.0,69614.0,0.15533283]
[1773208428342,0.00022001,69630.0,69615.0,0.0820682]
[1773208429705,0.00144,69633.0,69615.0,0.0820682]
[1773208430066,0.07324506,69633.0,69617.0,0.07935881]
[1773208430291,0.08400541,69632.0,69614.0,0.07182463]
[1773208430493,0.08400541,69632.0,69614.0,0.00144]
[1773208430691,0.08400541,69632.0,69615.0,0.001]
[1773208430861,0.08400541,69632.0,69613.0,0.07182557]
[1773208431066,0.08400541,69632.0,69612.0,0.07182566]
[1773208431302,0.08400541,69632.0,69617.0,0.001]
[1773208431481,0.08400541,69632.0,69612.0,0.07182566]
[1773208432093,0.14570066,69629.0,69609.0,0.00144]
[1773208432453,0.14570066,69629.0,69608.0,0.07183082]
[1773208432454,0.08400541,69628.0,69608.0,0.07183082]
[1773208432667,0.08400541,69626.0,69608.0,0.07347082]
[1773208433057,0.08400541,69626.0,69609.0,0.00144]
[1773208433258,0.08400541,69626.0,69608.0,0.0002]
[1773208433638,0.08400541,69626.0,69609.0,0.07935881]
[1773208434051,0.08500541,69626.0,69609.0,0.07935881]
[1773208434247,0.08400541,69624.0,69610.0,0.07182876]
[1773208434427,0.08400541,69624.0,69608.0,0.07203063]
[1773208436742,0.07181534,69623.0,69608.0,0.07203063]
[1773208436940,0.08400541,69622.0,69608.0,0.07203063]
[1773208438095,0.08400541,69619.0,69607.0,0.00031188]
[1773208439055,0.08400541,69617.0,69607.0,0.00031188]
[1773208440293,0.08400541,69617.0,69607.0,0.07214359]
[1773208440445,0.08400541,69617.0,69608.0,0.0002]
[1773208441295,0.07182256,69616.0,69608.0,0.0002]
[1773208442085,0.00144,69615.0,69608.0,0.0002]
[1773208443075,0.07182463,69614.0,69608.0,0.0002]
[1773208444731,0.08400541,69627.0,69609.0,0.07935881]
[1773208444933,0.08400541,69626.0,69609.0,0.07918937]
[1773208445107,0.07181328,69625.0,69610.0,0.12136517]
[1773208445329,0.07325328,69625.0,69611.0,0.07935881]
[1773208446037,0.00144,69624.0,69611.0,0.07935881]
[1773208446363,0.00144,69623.0,69611.0,0.07935881]
[1773208446519,0.00144,69625.0,69611.0,0.07935881]
[1773208446943,0.07202845,69630.0,69611.0,0.07935881]
[1773208447107,0.07181019,69628.0,69612.0,0.07182669]
[1773208447311,0.00144,69627.0,69613.0,0.07935881]
[1773208447529,0.00144,69627.0,69615.0,0.07935881]
[1773208448481,0.07181019,69628.0,69615.0,0.07935881]
[1773208448621,0.00144,69628.0,69615.0,0.07901997]
[1773208448830,0.00144,69628.0,69614.0,0.00144]
[1773208449031,0.00022001,69621.0,69611.0,0.07182669]
[1773208449232,0.00022001,69621.0,69612.0,0.00144]
[1773208449438,0.00022001,69621.0,69613.0,0.07182566]
[1773208449636,0.00022001,69621.0,69614.0,0.00144]
[1773208450070,0.07181305,69626.0,69614.0,0.00144]
[1773208450071,0.07181305,69626.0,69615.0,0.07935881]
[1773208450250,0.00144,69626.0,69615.0,0.07935881]
[1773208450657,0.00022001,69628.0,69615.0,0.07935881]
[1773208450859,0.00166001,69628.0,69618.0,0.04953059]
[1773208451088,0.00166001,69628.0,69619.0,0.07918942]
[1773208451303,0.00022001,69628.0,69619.0,0.07918942]
[1773208451708,0.00022001,69628.0,69620.0,0.07181844]
[1773208451912,0.00022001,69628.0,69621.0,0.07935881]
[1773208452268,0.00022001,69630.0,69621.0,0.07935881]
[1773208452470,0.00022001,69630.0,69622.0,0.00144]
[1773208452669,0.07180287,69636.0,69623.0,0.07935881]
[1773208452878,0.07324287,69636.0,69623.0,0.07935881]
[1773208453149,0.07180287,69636.0,69623.0,0.07935881]
[1773208453334,0.07202092,69637.0,69623.0,0.07935881]
[1773208453712,0.00022001,69637.0,69625.0,0.07935881]
[1773208453911,0.07202099,69637.0,69625.0,0.07935881]
[1773208454486,0.00022001,69637.0,69625.0,0.07935881]
[1773208455600,0.07202106,69637.0,69625.0,0.07935881]
[1773208456002,0.07179965,69639.0,69628.0,0.07935881]
[1773208456241,0.07179965,69639.0,69628.0,0.07918941]
[1773208456418,0.07179965,69639.0,69626.0,0.07181225]
[1773208456686,0.15580325,69640.0,69627.0,0.07935881]
[1773208457031,0.08400541,69639.0,69626.0,0.07181225]
[1773208457334,0.08400541,69636.0,69621.0,0.00144]
[1773208457629,0.00022001,69637.0,69618.0,0.00144]
[1773208457630,0.08400541,69634.0,69618.0,0.00144]
[1773208458331,0.07180503,69633.0,69620.0,0.04953059]
[1773208458638,0.07180503,69633.0,69620.0,0.1288894]
[1773208458799,0.07180503,69633.0,69620.0,0.04953059]
[1773208458995,0.00144,69632.0,69621.0,0.07935881]
[1773208460503,0.0732467,69632.0,69623.0,0.08257385]
[1773208461543,0.0732467,69632.0,69619.0,0.07181924]
[1773208461544,0.07733393,69631.0,69619.0,0.07181924]
[1773208461925,0.07733393,69631.0,69617.0,0.07182145]
[1773208462322,0.07733393,69631.0,69618.0,0.07325985]
[1773208462553,0.07180812,69630.0,69618.0,0.07325997]
[1773208462754,0.14914205,69630.0,69618.0,0.07325997]
[1773208462963,0.07733393,69629.0,69618.0,0.07325997]
[1773208463175,0.07733393,69629.0,69618.0,0.07326043]
[1773208463475,0.07733393,69629.0,69618.0,0.00144]
[1773208464369,0.07733393,69629.0,69618.0,0.07325982]
[1773208464876,0.07181019,69628.0,69618.0,0.07345982]
[1773208465180,0.07180592,69633.0,69618.0,0.07345982]
[1773208465181,0.00022001,69633.0,69619.0,0.08257385]
[1773208465475,0.07202511,69633.0,69619.0,0.08257385]
[1773208466430,0.14935904,69633.0,69619.0,0.08257385]
[1773208467048,0.14935904,69633.0,69620.0,0.07181844]
[1773208467659,0.07733393,69632.0,69620.0,0.07181844]
[1773208468074,0.00144,69631.0,69620.0,0.07181844]
[1773208468274,0.07733393,69632.0,69620.0,0.07181844]
[1773208468621,0.00144,69631.0,69621.0,0.08257385]
[1773208468856,0.00144,69631.0,69610.0,0.07182845]
[1773208468857,0.04953059,69631.0,69610.0,0.07182845]
[1773208469023,0.07733393,69627.0,69606.0,0.08257385]
[1773208469219,0.07733393,69625.0,69610.0,0.04953059]
[1773208469719,0.07733393,69625.0,69608.0,0.08277385]
[1773208470680,0.07733393,69625.0,69610.0,0.04953059]
[1773208470896,0.07733393,69625.0,69608.0,0.08277385]
[1773208471108,0.07181431,69624.0,69612.0,0.08257385]
[1773208471466,0.00144,69623.0,69612.0,0.08257385]
[1773208471833,0.00144,69625.0,69612.0,0.08257385]
[1773208472235,0.04953059,69622.0,69608.0,0.0002]
[1773208472431,0.07733393,69621.0,69608.0,0.0002]
[1773208472779,0.07733393,69619.0,69608.0,0.0002]
[1773208473210,0.0718205,69618.0,69608.0,0.0002]
[1773208473932,0.00144,69617.0,69608.0,0.0002]
[1773208474306,0.00144,69617.0,69608.0,0.00031188]
[1773208474501,0.00144,69617.0,69611.0,0.0002]
[1773208475112,0.07733393,69616.0,69611.0,0.0002]
[1773208475318,0.0718236,69615.0,69611.0,0.0002]
[1773208475721,0.0718236,69616.0,69611.0,0.0002]
[1773208476148,0.00144,69616.0,69611.0,0.08277385]
[1773208476351,0.07181637,69624.0,69611.0,0.08277385]
[1773208476523,0.00144,69623.0,69611.0,0.08277385]
[1773208476946,0.00144,69622.0,69621.0,0.0004]
[1773208477137,0.00144,69622.0,69611.0,0.08277385]
[1773208477322,0.07181741,69621.0,69611.0,0.1546012]
[1773208477690,0.00144,69620.0,69611.0,0.1546012]
[1773208477828,0.00144,69620.0,69611.0,0.07202735]
[1773208478044,0.07804863,69619.0,69608.0,0.07358243]
[1773208478249,0.07904863,69616.0,69611.0,0.001]
[1773208478444,0.001,69616.0,69608.0,0.07358243]
[1773208478655,0.07948863,69620.0,69608.0,0.07214243]
[1773208479684,0.07804863,69618.0,69608.0,0.00031188]
[1773208479867,0.07181947,69619.0,69608.0,0.07214207]
[1773208481188,0.00144,69618.0,69609.0,0.07718086]
[1773208481387,0.00144,69618.0,69608.0,0.07214207]
[1773208481642,0.00144,69617.0,69608.0,0.07214207]
[1773208482367,0.00144,69617.0,69609.0,0.001]
[1773208482500,0.07181969,69619.0,69608.0,0.07214207]
[1773208482702,0.00144,69618.0,69608.0,0.07214207]
[1773208484265,0.07326082,69618.0,69608.0,0.07214207]
[1773208485043,0.00144,69617.0,69608.0,0.07214207]
[1773208485419,0.07182082,69618.0,69608.0,0.07214207]
[1773208485620,0.07181322,69626.0,69609.0,0.07718086]